bitfinex-derivatives/quotes_SOLF0:USTF0_20241226
["timestamp","ask_amount","ask_price","bid_price","bid_amount"]
[1735256824239,8.97181381,188.49,188.43,1.6764]
[1735256824437,8.97181381,188.49,188.44,3.12]
[1735256824629,21.89454303,188.53,188.44,3.12]
[1735256824828,6.31601381,188.51,188.44,3.12]
[1735256825023,6.31601381,188.51,188.44,4.7417]
[1735256825230,8.97151381,188.51,188.46,2.6561]
[1735256825531,8.97151381,188.51,188.44,4.7417]
[1735256825730,2.6551,188.54,188.5,2.6555]
[1735256825930,6.31601381,188.53,188.49,3.12]
[1735256826135,6.31601381,188.51,188.48,3.12]
[1735256826535,8.97151381,188.51,188.48,3.12]
[1735256827836,8.97151381,188.51,188.48,5.7758]
[1735256828740,8.97111381,188.53,188.48,3.12]
[1735256829436,8.97111381,188.53,188.5,2.6555]
[1735256829839,6.31601381,188.53,188.48,3.12]
[1735256830636,54.16930744,188.58,188.48,3.12]
[1735256830839,6.31601381,188.55,188.49,1.6766]
[1735256831739,6.31601381,188.55,188.53,2.655]
[1735256832037,6.31601381,188.55,188.5,3.12]
[1735256832239,6.31601381,188.52,188.5,3.12]
[1735256833436,2.6552,188.53,188.5,3.12]
[1735256833643,8.97081381,188.56,188.53,2.655]
[1735256833844,6.31601381,188.56,188.5,3.12]
[1735256834343,6.31601381,188.56,188.53,2.655]
[1735256835037,6.31601381,188.56,188.5,3.12]
[1735256835238,2.6546,188.57,188.54,2.6549]
[1735256835539,6.31601381,188.56,188.54,2.6549]
[1735256839352,63.13972125,188.58,188.54,2.6549]
[1735256840144,6.31601381,188.56,188.54,2.6549]
[1735256847259,6.31601381,188.56,188.55,2.6548]
[1735256847557,2.6546,188.57,188.55,2.6548]
[1735256848158,6.31601381,188.58,188.55,2.6548]
[1735256848352,8.97041381,188.58,188.55,2.6548]
[1735256849265,8.97041381,188.58,188.5,11.09981381]
[1735256849555,8.97041381,188.58,188.56,2.6547]
[1735256851763,6.31601381,188.58,188.56,2.6547]
[1735256853866,23.77329303,188.66,188.58,2.6544]
[1735256854167,6.31601381,188.61,188.58,2.6544]
[1735256854772,6.31601381,188.61,188.56,1.5747]
[1735256855366,6.31601381,188.61,188.59,2.6542]
[1735256860972,8.97001381,188.61,188.59,2.6542]
[1735256863370,6.31601381,188.61,188.59,2.6542]
[1735256876189,6.31601381,188.61,188.6,2.6541]
[1735256880693,6.31601381,188.61,188.56,7.3493]
[1735256880894,6.31601381,188.58,188.56,4.6947]
[1735256881194,8.97041381,188.58,188.56,3.12]
[1735256881895,8.97041381,188.58,188.56,5.7747]
[1735256882296,2.6543,188.59,188.56,5.7747]
[1735256882509,8.97031381,188.59,188.56,5.7747]
[1735256883995,2.6545,188.58,188.56,3.12]
[1735256884405,6.31601381,188.59,188.56,3.12]
[1735256884595,8.97051381,188.57,188.56,3.12]
[1735256888807,6.31601381,188.57,188.52,2.6552]
[1735256889006,8.97091381,188.55,188.52,5.7752]
[1735256890605,6.31601381,188.55,188.54,2.655]
[1735256891505,8.97091381,188.55,188.52,5.7752]
[1735256892795,2.6549,188.55,188.52,5.7752]
[1735256894107,6.31601381,188.56,188.52,2.6552]
[1735256894304,8.97101381,188.54,188.51,5.7753]
[1735256894838,8.97101381,188.54,188.51,3.12]
[1735256895008,8.97101381,188.54,188.52,2.6552]
[1735256895612,6.31601381,188.54,188.52,2.6552]
[1735256897306,8.97071381,188.56,188.53,2.6551]
[1735256897804,19.96742208,188.61,188.51,3.12]
[1735256898002,19.96742208,188.61,188.52,1.6534]
[1735256898301,6.31601381,188.57,188.54,2.6549]
[1735256898708,6.31601381,188.55,188.52,1.6534]
[1735256898907,6.31601381,188.55,188.53,2.6551]
[1735256899106,6.31601381,188.55,188.52,1.6534]
[1735256899510,8.97081381,188.55,188.52,4.3085]
[1735256902915,8.97081381,188.55,188.52,1.6534]
[1735256903111,19.9673424,188.62,188.52,1.6534]
[1735256903410,6.31601381,188.58,188.52,1.6534]
[1735256904637,8.97041381,188.58,188.52,1.6534]
[1735256905115,6.31601381,188.58,188.56,2.6547]
[1735256906315,8.97041381,188.58,188.55,2.6548]
[1735256907717,8.97041381,188.58,188.56,2.6546]
[1735256907925,6.31601381,188.58,188.56,2.6546]
[1735256909127,2.6541,188.6,188.57,2.6545]
[1735256909327,8.09641224,188.64,188.55,3.12]
[1735256909519,21.89454303,188.65,188.55,3.12]
[1735256909719,6.31601381,188.62,188.55,3.12]
[1735256910257,8.96991381,188.62,188.59,2.6541]
[1735256914528,2.6539,188.62,188.59,2.6541]
[1735256914728,6.31601381,188.61,188.59,2.6541]
[1735256920632,2.6538,188.63,188.58,2.6544]
[1735256920832,6.31601381,188.62,188.56,1.5514]
[1735256921346,6.31601381,188.62,188.6,2.6541]
[1735256921733,6.31601381,188.62,188.6,5.7741]
[1735256925833,2.6538,188.63,188.61,2.6539]
[1735256925834,6.31601381,188.63,188.61,2.6539]
[1735256926236,6.31601381,188.63,188.62,2.6538]
[1735256930138,6.31601381,188.63,188.61,2.6539]
[1735256930338,6.31601381,188.62,188.61,2.6539]
[1735256934543,6.31601381,188.62,188.56,1.5514]
[1735256934742,11.87461293,188.68,188.53,1.5718]
[1735256934743,6.31601381,188.6,188.53,1.5718]
[1735256934938,6.31601381,188.56,188.54,3.12]
[1735256935645,6.31601381,188.56,188.55,2.6548]
[1735256938643,11.87461293,188.63,188.54,3.12]
[1735256938842,6.31601381,188.58,188.57,2.6544]
[1735256940941,21.89454303,188.64,188.54,3.12]
[1735256941139,6.31601381,188.62,188.54,3.12]
[1735256942148,6.31601381,188.62,188.55,7.89821381]
[1735256942345,6.31601381,188.62,188.61,2.654]
[1735256942548,6.31601381,188.62,188.61,5.774]
[1735256946446,6.31601381,188.64,188.62,2.6537]
[1735256951548,6.31601381,188.66,188.61,3.12]
[1735256954463,6.31601381,188.66,188.65,2.6534]
[1735256956752,11.88172992,188.72,188.61,3.12]
[1735256957059,6.31601381,188.71,188.63,6.31601381]
[1735256957253,6.31601381,188.71,188.64,1.6369]
[1735256957656,6.31601381,188.71,188.69,2.6527]
[1735256957955,6.31601381,188.71,188.69,5.7527]
[1735256958361,6.31601381,188.71,188.69,3.1]
[1735256958561,6.31601381,188.73,188.72,2.6524]
[1735256959259,6.31601381,188.75,188.74,2.6521]
[1735256966265,6.31601381,188.77,188.75,2.6519]
[1735256966658,6.31601381,188.77,188.74,3.1]
[1735256966858,6.31601381,188.75,188.71,3.1]
[1735256967054,6.31601381,188.72,188.71,3.1]
[1735256967316,6.31601381,188.72,188.7,3.1]
[1735256968168,2.652,188.75,188.71,2.6525]
[1735256968362,6.31601381,188.74,188.71,2.6525]
[1735256969662,6.31601381,188.74,188.67,3.301]
[1735256969863,2.6523,188.73,188.68,3.1]
[1735256970363,2.6523,188.73,188.7,2.6527]
[1735256971766,6.31601381,188.72,188.69,5.7528]
[1735256972170,6.31601381,188.72,188.69,3.1]
[1735256972171,8.96841381,188.72,188.69,3.1]
[1735256972365,6.31601381,188.7,188.69,3.1]
[1735256972688,2.653,188.68,188.6,7.84351381]
[1735256972864,6.31601381,188.66,188.61,4.7276]
[1735256973269,6.31601381,188.66,188.63,2.6536]
[1735256974068,6.31601381,188.66,188.61,4.7276]
[1735256974370,6.31601381,188.66,188.64,2.6535]
[1735256978271,6.31601381,188.66,188.63,3.1]
[1735256978474,6.31601381,188.68,188.67,2.6531]
[1735256979181,6.31601381,188.68,188.63,3.1]
[1735256979408,8.96901381,188.68,188.64,2.6534]
[1735256980675,8.96901381,188.68,188.65,2.6534]
[1735256980874,6.31601381,188.68,188.65,2.6534]
[1735256982679,6.31601381,188.68,188.66,2.6532]
[1735256983482,2.6527,188.7,188.66,2.6532]
[1735256983682,6.31601381,188.68,188.66,2.6532]
[1735256983873,6.31601381,188.71,188.68,2.653]
[1735256984068,6.31601381,188.69,188.68,3.1]
[1735256984474,8.96891381,188.69,188.65,2.6533]
[1735256984678,6.31601381,188.66,188.65,2.6533]
[1735256985179,6.31601381,188.66,188.62,3.1]
[1735256986073,6.31601381,188.66,188.65,2.6534]
[1735256986981,6.31601381,188.68,188.66,2.6533]
[1735256990983,6.31601381,188.68,188.67,2.6531]
[1735256991676,6.31601381,188.7,188.69,2.6529]
[1735256996087,2.6521,188.75,188.72,2.6524]
[1735256996284,6.31601381,188.73,188.72,2.6524]
[1735256997889,6.31601381,188.75,188.74,2.652]
[1735256998791,0.21368,188.78,188.72,3.1]
[1735256998987,0.21368,188.78,188.76,2.6518]
[1735256999185,6.31601381,188.77,188.76,2.6518]
[1735257002591,6.31601381,188.77,188.72,3.1]
[1735257002592,0.21368,188.78,188.77,2.6517]
[1735257002791,6.52969381,188.78,188.77,2.6517]
[1735257006897,6.52969381,188.78,188.72,3.1]
[1735257008405,6.52969381,188.78,188.76,2.6518]
[1735257008801,6.31601381,188.78,188.76,2.6518]
[1735257010298,2.6515,188.79,188.76,2.6518]
[1735257010498,6.31601381,188.77,188.76,2.6518]
[1735257014002,2.6512,188.82,188.78,2.6516]
[1735257014298,6.31601381,188.79,188.78,2.6516]
[1735257014499,2.6509,188.83,188.78,2.6516]
[1735257014700,6.31601381,188.79,188.78,2.6516]
[1735257021006,6.31601381,188.79,188.77,3.1]
[1735257021195,6.31601381,188.79,188.77,5.7517]
[1735257021402,6.31601381,188.79,188.74,1.5549]
[1735257021602,6.31601381,188.77,188.75,3.1]
[1735257021798,6.31601381,188.77,188.75,5.7519]
[1735257022402,6.31601381,188.77,188.75,2.6519]
[1735257022805,6.31601381,188.77,188.74,4.6549]
[1735257023001,8.96771381,188.77,188.74,7.307]
[1735257023503,6.31601381,188.77,188.74,4.6549]
[1735257023805,6.31601381,188.77,188.75,2.652]
[1735257024508,8.96781381,188.77,188.74,4.207]
[1735257024708,8.96781381,188.77,188.74,7.307]
[1735257024905,6.31601381,188.75,188.6,29.52995046]
[1735257025113,6.31601381,188.71,188.69,3.1]
[1735257025404,6.31601381,188.71,188.66,3.1433]
[1735257025600,6.31601381,188.71,188.68,3.1]
[1735257025999,6.31601381,188.71,188.66,1.5543]
[1735257026195,6.31601381,188.69,188.66,4.6543]
[1735257026398,6.31601381,188.67,188.66,4.6543]
[1735257029101,6.31601381,188.67,188.66,7.3076]
[1735257029498,6.31601381,188.69,188.66,7.3076]
[1735257030197,8.96901381,188.69,188.66,4.6543]
[1735257030401,6.31601381,188.69,188.66,4.6543]
[1735257030802,8.96891381,188.69,188.66,4.6543]
[1735257031304,2.6529,188.69,188.66,4.6543]
[1735257031507,6.31601381,188.68,188.66,4.6543]
[1735257035311,6.31601381,188.68,188.66,7.3075]
[1735257038112,6.31601381,188.68,188.61,3.1501]
[1735257038313,8.96901381,188.68,188.65,2.6534]
[1735257040114,8.96901381,188.68,188.62,3.1]
[1735257040312,8.96931381,188.66,188.62,3.1]
[1735257041415,8.96931381,188.66,188.63,2.6537]
[1735257041611,6.31601381,188.66,188.63,2.6537]
[1735257043019,6.31601381,188.66,188.65,2.6534]
[1735257043918,6.31601381,188.66,188.62,3.1]
[1735257044221,6.31601381,188.64,188.62,3.1]
[1735257046419,6.31601381,188.64,188.63,2.6537]
[1735257048319,6.31601381,188.66,188.64,2.6535]
[1735257058232,6.31601381,188.66,188.61,3.1]
[1735257058529,6.31601381,188.63,188.6,3.1]
[1735257058731,8.96971381,188.63,188.61,2.654]
[1735257058928,6.31601381,188.63,188.6,3.1]
[1735257059520,6.31601381,188.63,188.62,2.6538]
[1735257061431,6.31601381,188.65,188.64,2.6536]
[1735257061938,6.31601381,188.65,188.63,2.6536]
[1735257062138,6.31601381,188.65,188.56,9.66811381]
[1735257062139,6.31601381,188.65,188.56,3.3521]
[1735257062325,6.31601381,188.6,188.57,3.1]
[1735257063040,3.1,188.68,188.56,3.3521]
[1735257063041,6.31601381,188.58,188.56,3.3521]
[1735257063241,6.31601381,188.58,188.57,3.1]
[1735257064433,6.31601381,188.58,188.55,1.5286]
[1735257064633,6.31601381,188.58,188.56,3.1]
[1735257065333,6.31601381,188.58,188.55,1.5286]
[1735257065634,6.31601381,188.58,188.57,2.6545]
[1735257068431,6.31601381,188.58,188.56,2.6546]
[1735257071730,2.6541,188.6,188.57,2.6545]
[1735257071931,6.31601381,188.58,188.57,2.6545]
[1735257074845,6.31601381,188.58,188.55,3.1]
[1735257075045,6.31601381,188.56,188.51,4.6541]
[1735257075248,6.31601381,188.52,188.51,4.6541]
[1735257075444,6.31601381,188.52,188.51,1.5541]
[1735257075644,6.31601381,188.52,188.48,5.7558]
[1735257075844,6.31601381,188.5,188.48,5.7558]
[1735257077746,6.31601381,188.5,188.46,1.5498]
[1735257077948,6.31601381,188.48,188.46,1.5498]
[1735257078941,6.31601381,188.48,188.46,4.2058]
[1735257081450,8.97181381,188.48,188.46,1.5498]
[1735257081650,8.97181381,188.48,188.44,2.6563]
[1735257081947,6.31601381,188.45,188.43,3.1]
[1735257082139,6.31601381,188.45,188.42,5.7566]
[1735257082346,6.31601381,188.45,188.42,3.1]
[1735257082845,3.1,188.53,188.42,3.1]
[1735257083048,6.31601381,188.49,188.43,3.1]
[1735257084545,6.31601381,188.49,188.47,2.6559]
[1735257084951,6.31601381,188.49,188.45,2.6561]
[1735257085147,6.31601381,188.46,188.39,7.98671381]
[1735257085351,6.31601381,188.46,188.4,3.1]
[1735257085560,6.31601381,188.46,188.39,7.98671381]
[1735257085752,6.31601381,188.46,188.4,3.1]
[1735257087650,6.31601381,188.46,188.43,2.6565]
[1735257091459,6.31601381,188.44,188.43,2.6565]
[1735257092162,8.97241381,188.44,188.41,5.7568]
[1735257093058,2.6566,188.43,188.39,4.3277]
[1735257093257,6.31601381,188.42,188.39,7.4277]
[1735257093660,6.31601381,188.4,188.39,1.6707]
[1735257093857,6.31601381,188.4,188.32,3.152]
[1735257094060,6.31601381,188.38,188.35,3.1]
[1735257095465,6.31601381,188.38,188.36,2.6574]
[1735257095859,6.31601381,188.38,188.35,3.1]
[1735257096069,6.31601381,188.36,188.35,3.1]
[1735257096362,8.97351381,188.36,188.35,3.1]
[1735257096668,6.31601381,188.36,188.31,3.1]
[1735257096866,6.31601381,188.33,188.31,3.1]
[1735257098158,6.31601381,188.33,188.31,5.7582]
[1735257098364,6.31601381,188.33,188.31,3.1]
[1735257099965,2.6582,188.31,188.26,5.7588]
[1735257100166,6.31601381,188.28,188.26,2.6588]
[1735257103165,6.31601381,188.28,188.27,2.6588]
[1735257103363,6.31601381,188.3,188.25,3.1]
[1735257104264,6.31601381,188.28,188.26,2.6588]
[1735257105065,6.31601381,188.28,188.25,3.1]
[1735257105411,6.31601381,188.26,188.25,3.1]
[1735257105565,6.31601381,188.26,188.24,2.6591]
[1735257106170,6.31601381,188.26,188.25,2.659]
[1735257106375,2.1595,188.35,188.23,3.1]
[1735257106376,6.31601381,188.28,188.23,3.1]
[1735257106670,6.31601381,188.29,188.23,3.1]
[1735257106870,6.31601381,188.31,188.24,8.01021381]
[1735257108070,6.31601381,188.31,188.3,2.6583]
[1735257108264,6.31601381,188.31,188.3,5.7583]
[1735257110565,6.31601381,188.33,188.3,3.1]
[1735257111071,3.1,188.46,188.31,1.5677]
[1735257111266,6.31601381,188.38,188.37,2.6572]
[1735257111673,6.31601381,188.38,188.35,3.1]
[1735257111872,6.31601381,188.38,188.36,2.6575]
[1735257112070,6.31601381,188.38,188.35,3.1]
[1735257112377,6.31601381,188.36,188.32,2.658]
[1735257112574,6.31601381,188.34,188.33,3.1]
[1735257115573,6.31601381,188.34,188.33,5.7579]
[1735257121578,1.4392,188.47,188.33,3.1]
[1735257121788,6.31601381,188.39,188.33,3.1]
[1735257122081,6.31601381,188.39,188.34,3.1459]
[1735257122603,6.31601381,188.41,188.35,1.6153]
[1735257122785,6.31601381,188.41,188.39,2.657]
[1735257123084,6.31601381,188.41,188.39,5.757]
[1735257124586,2.6569,188.4,188.35,1.6153]
[1735257124783,6.31601381,188.38,188.36,3.1]
[1735257125187,6.31601381,188.38,188.37,2.6574]
[1735257126990,6.31601381,188.4,188.39,2.657]
[1735257128800,6.31601381,188.4,188.37,2.6573]
[1735257129190,6.31601381,188.38,188.36,3.1]
[1735257129385,6.31601381,188.38,188.35,1.6153]
[1735257129588,6.31601381,188.36,188.34,3.1]
[1735257129789,6.31601381,188.36,188.3,1.6826]
[1735257130078,6.31601381,188.33,188.31,3.1]
[1735257130878,6.31601381,188.35,188.31,3.1]
[1735257131286,6.31601381,188.37,188.35,2.6575]
[1735257132092,6.31601381,188.37,188.34,2.6578]
[1735257132389,6.31601381,188.35,188.3,1.6826]
[1735257132588,6.31601381,188.32,188.3,4.7826]
[1735257133186,6.31601381,188.32,188.27,2.6586]
[1735257133492,1.4381,188.39,188.27,3.1]
[1735257133493,6.31601381,188.29,188.27,3.1]
[1735257134192,2.6584,188.3,188.27,3.1]
[1735257135487,9.86534216,188.31,188.25,1.6579]
[1735257137085,2.6586,188.29,188.25,4.3169]
[1735257137292,9.86534216,188.31,188.25,1.6579]
[1735257137841,12.52354216,188.31,188.27,2.6587]
[1735257137985,9.86534216,188.31,188.25,1.6579]
[1735257139397,2.6585,188.29,188.25,4.3169]
[1735257139692,9.86534216,188.31,188.25,1.6579]
[1735257139994,12.52354216,188.31,188.27,2.6587]
[1735257143598,9.86534216,188.31,188.28,2.6585]
[1735257144696,9.86534216,188.31,188.25,1.6579]
[1735257145000,9.86534216,188.31,188.25,3.1]
[1735257146399,2.6587,188.28,188.25,3.1]
[1735257146795,2.6587,188.28,188.24,2.6592]
[1735257147043,2.6587,188.28,188.24,5.7592]
[1735257147296,2.6587,188.28,188.25,2.659]
[1735257147494,2.6585,188.29,188.24,3.1]
[1735257147701,9.86534216,188.31,188.24,3.1]
[1735257148793,12.52364216,188.31,188.28,2.6586]
[1735257154204,6.31237459,188.3,188.28,2.6586]
[1735257154707,6.31237459,188.3,188.24,3.1]
[1735257154708,8.97077459,188.3,188.27,2.6587]
[1735257154905,6.31237459,188.3,188.24,3.1]
[1735257155601,6.31237459,188.3,188.27,2.6587]
[1735257155801,6.31237459,188.3,188.24,3.1]
[1735257156502,6.31237459,188.32,188.24,9.41237459]
[1735257156702,6.31237459,188.32,188.25,1.6069]
[1735257157201,6.31237459,188.32,188.3,2.6583]
[1735257157602,6.31237459,188.32,188.29,3.1]
[1735257158511,6.31237459,188.32,188.31,2.6582]
[1735257160006,9.41237459,188.32,188.13,161.68962427]
[1735257160208,6.31237459,188.19,188.15,89.58985141]
[1735257160411,6.31237459,188.19,188.17,4.64764266]
[1735257160607,2.6603,188.16,188.15,89.58985141]
[1735257160905,8.97267459,188.16,188.15,89.58985141]
[1735257161306,2.6601,188.18,188.15,89.58985141]
[1735257161502,6.31237459,188.16,188.15,89.58985141]
[1735257161999,6.31237459,188.16,188.15,1.0]
[1735257162205,9.87845815,188.18,188.15,1.0]
[1735257163204,9.87845815,188.18,188.16,2.6603]
[1735257164603,9.87845815,188.18,188.15,1.0]
[1735257167102,12.53805815,188.21,188.17,2.6602]
[1735257167308,9.87845815,188.24,188.17,3.1]
[1735257167704,12.53775815,188.24,188.19,2.6598]
[1735257171312,12.53775815,188.24,188.17,3.1]
[1735257171508,12.53775815,188.24,188.19,2.6599]
[1735257177713,12.53775815,188.24,188.17,3.1]
[1735257177912,12.53775815,188.24,188.2,2.6597]
[1735257184114,6.31812007,188.22,188.17,3.1]
[1735257184317,6.31812007,188.22,188.21,2.6596]
[1735257185718,6.31812007,188.22,188.2,2.6597]
[1735257185979,6.31812007,188.21,188.2,2.6597]
[1735257201530,35.82677485,188.23,188.21,2.6595]
[1735257201735,35.82677485,188.23,188.15,1.0]
[1735257201930,6.31812007,188.19,188.15,1.0]
[1735257202336,6.31812007,188.17,188.15,1.0]
[1735257202635,6.31812007,188.17,188.16,2.6603]
[1735257203937,7.38263581,188.19,188.15,1.0]
[1735257204140,6.31812007,188.18,188.16,2.6603]
[1735257210346,2.6602,188.17,188.15,1.0]
[1735257210649,6.31812007,188.16,188.15,1.0]
[1735257212151,6.31812007,188.16,188.15,3.6605]
[1735257212346,6.31812007,188.18,188.15,1.0]
[1735257213052,6.31812007,188.18,188.17,2.6602]
[1735257219546,29.50865478,188.2,188.16,2.6603]
[1735257219762,6.31812007,188.19,188.15,1.0]
[1735257220650,6.31812007,188.19,188.18,2.6599]
[1735257225155,29.50865478,188.23,188.15,4.1]
[1735257225347,29.50865478,188.23,188.2,2.6596]
[1735257226362,42.75392731,188.23,188.2,2.6596]
[1735257226657,42.75392731,188.23,188.21,2.6596]
[1735257226857,6.31812007,188.22,188.21,2.6596]
[1735257235963,7.38263581,188.24,188.15,4.1]
[1735257236165,7.38263581,188.24,188.22,2.6594]
[1735257236365,6.31812007,188.23,188.22,2.6594]
[1735257238862,32.16775478,188.25,188.22,2.6594]
[1735257239060,6.31812007,188.23,188.22,2.6594]
[1735257248277,6.31812007,188.23,188.2,2.6597]
[1735257248482,6.31812007,188.2,188.15,1.0]
[1735257248679,11.37344287,188.27,188.15,1.0]
[1735257248680,6.31812007,188.16,188.15,1.0]
[1735257249277,8.97842007,188.16,188.1,2.6612]
[1735257249582,3.1,188.2,188.1,2.6612]
[1735257249583,6.31812007,188.12,188.1,2.6612]
[1735257250972,29.50865478,188.17,188.1,6.31812007]
[1735257252081,29.50865478,188.17,188.16,2.6603]
[1735257252477,6.31812007,188.18,188.17,2.6602]
[1735257253181,29.50865478,188.23,188.14,9.41812007]
[1735257253378,6.31812007,188.22,188.2,2.6597]
[1735257255689,6.31812007,188.24,188.19,3.1]
[1735257255883,6.31812007,188.22,188.19,3.1]
[1735257257487,6.31812007,188.22,188.21,2.6596]
[1735257258094,6.31812007,188.22,188.19,3.1]
[1735257258440,6.31812007,188.22,188.2,2.6596]
[1735257260691,6.31812007,188.22,188.21,2.6596]
[1735257269493,6.31812007,188.24,188.22,2.6594]
[1735257275499,6.31812007,188.24,188.23,2.6593]
[1735257276302,29.50865478,188.28,188.26,2.6588]
[1735257276504,6.31812007,188.27,188.24,3.1]
[1735257277232,6.31812007,188.27,188.26,2.6589]
[1735257278704,29.50865478,188.3,188.29,2.6585]
[1735257278910,7.38263581,188.31,188.29,2.6585]
[1735257279101,7.38263581,188.31,188.25,1.6676]
[1735257279297,6.31812007,188.29,188.28,2.6586]
[1735257284802,6.31812007,188.31,188.28,2.6586]
[1735257285003,6.31812007,188.31,188.3,2.6583]
[1735257285208,29.50865478,188.34,188.29,3.1]
[1735257285410,35.82677485,188.34,188.29,3.1]
[1735257286351,6.31812007,188.34,188.29,3.1]
[1735257286612,6.31812007,188.34,188.33,2.6579]
[1735257287808,29.50865478,188.37,188.3,1.6097]
[1735257287809,6.31812007,188.36,188.3,1.6097]
[1735257288115,6.31812007,188.36,188.35,2.6575]
[1735257288915,7.38263581,188.39,188.3,3.2917]
[1735257289212,6.31812007,188.38,188.31,6.31812007]
[1735257289421,7.38263581,188.39,188.33,6.31812007]
[1735257289607,7.38263581,188.39,188.34,4.6836]
[1735257289811,7.38263581,188.39,188.38,2.6572]
[1735257290413,7.38263581,188.39,188.34,4.6836]
[1735257290414,35.82677485,188.42,188.41,2.6568]
[1735257291015,29.50865478,188.42,188.41,2.6568]
[1735257291309,22.12601897,188.42,188.41,2.6568]
[1735257291508,6.31812007,188.44,188.42,2.6566]
[1735257292520,6.31812007,188.44,188.4,3.1]
[1735257292521,6.31812007,188.44,188.43,2.6565]
[1735257292909,6.31812007,188.46,188.45,2.6562]
[1735257293417,6.31812007,188.48,188.41,8.01122007]
[1735257293615,6.31812007,188.48,188.47,2.6559]
[1735257295715,60.68502856,188.54,188.45,3.1]
[1735257295916,6.31812007,188.5,188.45,3.1]
[1735257297215,6.31812007,188.52,188.46,1.5531]
[1735257297421,7.38263581,188.59,188.46,1.5531]
[1735257297784,6.31812007,188.54,188.53,2.6551]
[1735257297921,6.31812007,188.54,188.52,3.1]
[1735257299519,6.31812007,188.54,188.52,5.7552]
[1735257300115,6.31812007,188.54,188.46,3.2166]
[1735257300316,6.31812007,188.51,188.47,3.1]
[1735257300720,6.31812007,188.51,188.47,5.7558]
[1735257300919,6.31812007,188.51,188.47,3.1]
[1735257301826,6.31812007,188.51,188.48,2.6558]
[1735257303019,6.31812007,188.49,188.46,2.6561]
[1735257303222,6.31812007,188.47,188.41,1.6931]
[1735257303422,6.31812007,188.43,188.41,1.6931]
[1735257303719,6.31812007,188.43,188.41,4.3499]
[1735257303922,6.31812007,188.43,188.41,1.6931]
[1735257304119,6.31812007,188.43,188.39,3.1]
[1735257304320,6.31812007,188.41,188.37,3.2044]
[1735257304522,6.31812007,188.41,188.38,3.1]
[1735257304925,6.31812007,188.41,188.39,2.6571]
[1735257305626,6.31812007,188.41,188.38,2.6572]
[1735257306218,6.31812007,188.39,188.37,3.1]
[1735257306417,6.31812007,188.39,188.36,1.5638]
[1735257307025,6.31812007,188.37,188.31,7.99842007]
[1735257307219,6.31812007,188.37,188.31,1.6803]
[1735257307432,6.31812007,188.35,188.32,3.1]
[1735257308930,6.31812007,188.35,188.32,5.758]
[1735257309625,6.31812007,188.35,188.32,3.1]
[1735257311622,7.38263581,188.45,188.32,3.1]
[1735257311881,6.31812007,188.37,188.32,3.1]
[1735257312234,7.38263581,188.45,188.32,3.1]
[1735257312485,6.31812007,188.39,188.32,3.1]
[1735257313130,6.31812007,188.41,188.33,6.31812007]
[1735257313328,6.31812007,188.41,188.35,6.31812007]
[1735257313529,6.31812007,188.41,188.36,1.6319]
[1735257313733,6.31812007,188.41,188.37,3.1]
[1735257314533,6.31812007,188.41,188.4,2.6569]
[1735257315527,6.31812007,188.43,188.4,2.6569]
[1735257316935,6.31812007,188.43,188.42,2.6567]
[1735257317133,6.31812007,188.45,188.37,9.41812007]
[1735257317337,6.31812007,188.45,188.39,6.31812007]
[1735257317534,6.31812007,188.45,188.43,2.6564]
[1735257317740,6.31812007,188.45,188.4,1.5465]
[1735257317741,6.31812007,188.45,188.42,3.1]
[1735257318236,6.31812007,188.47,188.42,3.1]
[1735257319438,6.31812007,188.47,188.46,2.6561]
[1735257319633,6.31812007,188.49,188.42,3.1]
[1735257320138,6.31812007,188.49,188.47,2.6559]
[1735257320533,2.6553,188.52,188.46,2.656]
[1735257320738,6.31812007,188.49,188.46,2.656]
[1735257321839,6.31812007,188.49,188.47,2.6559]
[1735257322237,12.49923336,188.52,188.47,2.6559]
[1735257326742,9.84393336,188.52,188.48,2.6557]
[1735257326945,9.84393336,188.52,188.42,3.1]
[1735257327845,9.84393336,188.52,188.48,2.6557]